bitfinex-derivatives/quotes_ETHF0:USTF0_20241008
["timestamp","ask_amount","ask_price","bid_price","bid_amount"]
[1728411000803,5.0089,2451.7,2451.5,3.2078]
[1728411003699,3.18,2451.9,2451.5,3.2078]
[1728411003906,0.8905,2452.2,2451.8,3.2078]
[1728411004198,0.8905,2452.2,2451.9,1.824]
[1728411005097,3.18,2452.3,2451.9,1.824]
[1728411005296,3.18,2452.3,2451.9,2.703]
[1728411005499,3.18,2452.3,2452.1,3.2078]
[1728411007197,1.8521,2452.5,2452.1,3.2078]
[1728411008802,1.8521,2452.5,2451.4,0.205]
[1728411008803,3.18,2452.3,2451.4,0.205]
[1728411008997,7.8521,2452.5,2451.2,6.3878]
[1728411008998,3.18,2452.0,2451.2,8.2884]
[1728411009204,2.6974,2451.9,2451.5,3.2078]
[1728411010301,0.40816,2451.3,2451.2,3.2078]
[1728411010506,7.9692,2451.9,2451.2,3.2078]
[1728411010507,4.7614,2451.9,2451.2,3.2078]
[1728411010703,0.40808,2451.8,2451.5,3.18]
[1728411010900,0.40808,2451.8,2451.6,2.19671]
[1728411011411,0.40808,2451.8,2451.6,1.7886]
[1728411011709,1.8277,2451.9,2451.6,1.7886]
[1728411011916,0.40808,2451.8,2451.6,1.7886]
[1728411012211,0.4081,2451.7,2451.6,1.7886]
[1728411012593,0.4081,2451.7,2451.6,5.8678]
[1728411012803,0.4081,2451.7,2451.6,1.7886]
[1728411013206,0.4081,2451.7,2451.6,0.8948]
[1728411014706,0.4081,2451.7,2451.6,5.38211]
[1728411014901,0.4081,2451.7,2451.6,1.30291]
[1728411015103,0.4081,2451.7,2451.6,5.38211]
[1728411016702,0.4081,2451.7,2451.6,0.8948]
[1728411017408,0.4081,2451.7,2451.6,1.30291]
[1728411017605,2.84787,2451.9,2451.3,6.07591]
[1728411017810,0.40813,2451.6,2451.5,0.40812]
[1728411019805,1.0202,2451.8,2451.3,6.0155]
[1728411020113,0.40811,2451.7,2451.6,0.4081]
[1728411021909,2.23577,2451.9,2451.8,0.40808]
[1728411022506,0.40809,2451.8,2451.7,0.40808]
[1728411023015,1.8277,2451.9,2451.5,1.02031]
[1728411023213,1.8277,2451.9,2451.8,0.40808]
[1728411023514,2.23576,2451.9,2451.8,0.40808]
[1728411023927,1.8277,2451.9,2451.8,0.40808]
[1728411024221,0.40804,2452.1,2452.0,0.40803]
[1728411024406,1.89469,2452.1,2451.7,0.9502]
[1728411024605,0.40807,2451.9,2451.8,0.40806]
[1728411025417,0.8746,2452.1,2451.7,0.9502]
[1728411025718,0.9246,2451.8,2451.7,1.3583]
[1728411026311,0.40805,2452.0,2451.9,0.40806]
[1728411027106,1.89468,2452.1,2451.6,3.2078]
[1728411027313,0.4081,2451.8,2451.7,0.40808]
[1728411027615,0.9607,2452.0,2451.6,3.18]
[1728411027812,0.9607,2452.0,2451.9,0.40805]
[1728411027813,0.40806,2452.0,2451.9,0.40805]
[1728411028716,0.40801,2452.3,2452.2,0.40799]
[1728411029314,0.40801,2452.3,2451.8,6.00189]
[1728411029513,0.40805,2452.1,2452.0,0.40803]
[1728411032416,1.02,2452.3,2451.8,6.0019]
[1728411032615,0.40804,2452.1,2452.0,0.40802]
[1728411033319,0.40802,2452.2,2452.1,0.40801]
[1728411034916,0.40806,2452.0,2451.9,0.40804]
[1728411035110,0.40806,2452.0,2451.7,1.91803]
[1728411035111,0.40809,2451.8,2451.7,0.40807]
[1728411036323,0.40809,2451.8,2451.6,0.4081]
[1728411036324,0.40811,2451.7,2451.6,0.4081]
[1728411036511,0.40811,2451.6,2451.5,1.8149]
[1728411036819,0.40809,2451.8,2451.2,7.3217]
[1728411037022,0.9463,2451.5,2451.2,7.3217]
[1728411037328,0.4081,2451.7,2451.6,0.40811]
[1728411039025,0.40813,2451.6,2451.5,0.40813]
[1728411044923,0.40815,2451.4,2451.3,2.29594]
[1728411047429,0.40813,2451.6,2451.5,0.40811]
[1728411048628,1.28113,2452.2,2452.1,0.40803]
[1728411048824,1.2803,2452.3,2451.9,4.20016]
[1728411049030,1.2803,2452.3,2452.2,0.40801]
[1728411049324,1.89304,2452.5,2452.3,0.40798]
[1728411049325,0.40799,2452.4,2452.3,0.40798]
[1728411049530,1.28108,2452.5,2452.4,0.40798]
[1728411049829,0.40799,2452.4,2452.3,0.40798]
[1728411050320,0.40801,2452.3,2452.2,0.408]
[1728411050525,5.09755,2452.4,2452.0,2.7434]
[1728411050526,0.40799,2452.4,2452.3,0.40798]
[1728411053627,6.71074913,2452.6,2452.5,0.40796]
[1728411053831,7.11869913,2452.6,2452.5,0.40796]
[1728411056636,6.71074913,2452.6,2452.4,0.9278]
[1728411056834,0.40796,2452.5,2452.4,1.33576]
[1728411057337,0.40796,2452.5,2452.2,3.61579]
[1728411057338,0.408,2452.3,2452.2,3.61579]
[1728411057534,0.408,2452.3,2452.2,0.40799]
[1728411057733,0.40797,2452.5,2452.4,0.40796]
[1728411058339,5.11871913,2452.6,2452.4,0.40796]
[1728411058530,0.40797,2452.5,2452.4,0.40796]
[1728411061637,0.8711,2452.6,2452.3,0.9227]
[1728411061836,0.40798,2452.4,2452.3,1.33069]
[1728411062133,0.8711,2452.6,2452.3,0.9227]
[1728411062338,0.40798,2452.4,2452.3,0.9227]
[1728411064237,0.40798,2452.4,2452.3,1.3307]
[1728411064439,0.40798,2452.4,2452.3,0.9227]
[1728411065539,0.40798,2452.4,2452.3,1.3307]
[1728411065839,1.89099,2452.6,2452.2,3.588]
[1728411066044,0.8892,2452.3,2451.8,3.18]
[1728411066233,0.40806,2451.9,2451.8,3.58806]
[1728411066643,0.40805,2452.0,2451.9,0.40805]
[1728411066843,0.40801,2452.3,2452.2,0.40801]
[1728411067039,0.40799,2452.4,2452.3,0.40798]
[1728411067243,0.40799,2452.4,2452.3,1.87798]
[1728411070653,0.40799,2452.4,2452.3,1.47]
[1728411070846,0.408,2452.3,2452.2,2.8329]
[1728411071043,5.69772,2452.5,2452.1,3.2078]
[1728411071239,0.40809,2451.9,2451.8,1.87807]
[1728411072049,2.87962,2452.1,2451.8,1.47]
[1728411072251,2.87962,2452.1,2451.6,6.13038]
[1728411072252,2.26753,2452.1,2452.0,1.87805]
[1728411072444,0.40806,2452.0,2451.9,0.40805]
[1728411073048,0.40806,2451.9,2451.8,3.58805]
[1728411074551,0.40806,2452.0,2451.9,0.40805]
[1728411077247,0.40805,2452.0,2451.9,0.40805]
[1728411078862,2.26754,2452.1,2452.0,0.40805]
[1728411079054,0.40804,2452.1,2452.0,0.40805]
[1728411080152,0.40803,2452.2,2452.1,0.40801]
[1728411082257,0.40803,2452.2,2452.1,2.26601]
[1728411082764,0.40801,2452.3,2452.2,0.40799]
[1728411083065,1.9061,2452.5,2452.1,2.7331]
[1728411083255,0.40799,2452.4,2452.3,0.40798]
[1728411085458,0.40797,2452.6,2452.5,0.40795]
[1728411085657,0.40797,2452.6,2452.3,3.2078]
[1728411085857,0.40798,2452.5,2452.4,0.40796]
[1728411087967,1.33048,2452.5,2452.4,0.40796]
[1728411092272,0.40801,2452.2,2452.1,2.7331]
[1728411092468,1.02,2452.3,2451.7,4.20023]
[1728411092674,0.40808,2451.9,2451.8,0.40806]
[1728411092970,0.40808,2451.8,2451.7,1.29797]
[1728411093975,1.33907,2451.9,2451.8,0.40808]
[1728411094577,1.33907,2451.9,2451.8,1.47]
[1728411095678,1.33907,2451.9,2451.8,1.87808]
[1728411097278,1.33907,2451.9,2451.8,1.47]
[1728411098382,1.32113,2452.1,2452.0,0.40805]
[1728411098678,0.40803,2452.1,2452.0,1.87805]
[1728411103282,1.8834,2452.3,2452.0,1.47]
[1728411103583,0.40801,2452.3,2452.2,0.40801]
[1728411106379,0.40801,2452.3,2452.2,1.87801]
[1728411107288,1.01991,2452.5,2452.2,1.47]
[1728411107482,0.40799,2452.4,2452.3,0.40798]
[1728411108086,0.40797,2452.5,2452.4,0.40796]
[1728411111783,2.84837,2452.6,2452.3,1.47]
[1728411111784,1.8285,2452.6,2452.3,1.47]
[1728411111984,2.23647,2452.6,2452.5,0.40796]
[1728411114190,1.01977,2452.9,2452.5,1.47]
[1728411114495,0.40794,2452.8,2452.7,0.40791]
[1728411116996,0.40794,2452.8,2452.6,4.1941]
[1728411117294,3.2175,2453.0,2452.2,1.02]
[1728411117295,0.40799,2452.4,2452.3,0.40798]
[1728411117494,0.40799,2452.4,2452.3,1.28898]
[1728411118295,0.40799,2452.4,2452.3,0.881]
[1728411118498,0.40799,2452.4,2452.3,1.28899]
[1728411119696,0.40799,2452.4,2452.3,0.881]
[1728411119897,1.28879,2452.4,2452.3,1.28899]
[1728411122793,1.28879,2452.4,2452.3,0.40799]
[1728411122989,6.4284,2452.4,2451.7,0.205]
[1728411123197,0.40806,2451.9,2451.8,4.57857]
[1728411123403,0.40806,2451.9,2451.8,3.2078]
[1728411123602,1.8736,2451.9,2451.8,5.08588]
[1728411123799,0.40803,2452.2,2452.1,0.40802]
[1728411123999,4.48643,2452.2,2452.1,1.87802]
[1728411124495,2.441,2452.3,2452.2,0.40801]
[1728411124897,6.5186,2452.3,2452.2,0.40801]
[1728411125213,2.441,2452.3,2452.2,0.40801]
[1728411125409,0.40801,2452.2,2452.1,2.77331]
[1728411126408,0.40801,2452.2,2452.1,2.3653]
[1728411126615,0.40801,2452.2,2452.1,0.8953]
[1728411126910,0.40801,2452.2,2452.1,1.30333]
[1728411127615,0.40804,2452.1,2452.0,0.40803]
[1728411128016,3.05303,2452.3,2451.8,4.0923]
[1728411128212,0.40806,2451.9,2451.8,3.2078]
[1728411128417,0.40806,2451.9,2451.8,3.61588]
[1728411128612,1.28986,2451.9,2451.8,3.61588]
[1728411128808,1.35706,2452.0,2451.9,0.40806]
[1728411130110,0.40806,2451.9,2451.8,5.08586]
[1728411132217,0.40806,2451.9,2451.8,5.08588]
[1728411132413,0.40806,2451.9,2451.8,4.6778]
[1728411133010,0.40806,2451.9,2451.8,5.08588]
[1728411135221,0.40806,2451.9,2451.8,1.87808]
[1728411136726,1.90185,2452.2,2452.0,0.40803]
[1728411136727,0.40806,2452.1,2452.0,0.40803]
[1728411136930,2.87301,2452.3,2451.9,1.47]
[1728411137132,0.40802,2452.2,2452.1,0.40801]
[1728411137431,0.40802,2452.2,2452.1,2.19461]
[1728411138428,0.40803,2452.1,2452.0,1.36033]
[1728411139825,0.40803,2452.1,2452.0,2.83033]
[1728411140831,5.15907,2452.4,2452.0,6.65022]
[1728411140832,3.2078,2452.4,2452.0,6.65022]
[1728411141030,3.2078,2452.4,2452.3,0.40799]
[1728411141031,3.61578,2452.4,2452.3,0.40799]
[1728411141522,1.7979,2452.6,2452.3,1.47]
[1728411141728,1.42767,2452.9,2452.8,0.4079]
[1728411141930,1.3311,2453.0,2452.9,0.40789]
[1728411142227,4.49037,2453.1,2453.0,0.40788]
[1728411143035,4.0825,2453.1,2452.9,0.8885]
[1728411143231,5.5525,2453.1,2452.8,0.4079]
[1728411143529,0.40794,2452.7,2452.6,0.40792]
[1728411143735,0.40792,2452.8,2452.7,0.40791]
[1728411143928,0.40792,2452.8,2452.6,2.3958]
[1728411143929,0.40793,2452.7,2452.6,2.80374]
[1728411144228,0.40793,2452.7,2452.6,1.33374]
[1728411145729,1.30103,2452.8,2452.7,0.40793]
[1728411145927,0.40793,2452.7,2452.6,1.33373]
[1728411147631,0.40793,2452.7,2452.6,0.9258]
[1728411147936,0.40796,2452.6,2452.5,0.40795]
[1728411148238,1.36576,2452.6,2452.5,0.40795]
[1728411148430,0.40797,2452.5,2452.4,0.40796]
[1728411149229,0.9578,2452.6,2452.2,2.7185]
[1728411149432,0.40799,2452.3,2452.2,3.1265]
[1728411149634,0.40801,2452.2,2452.1,3.61582]
[1728411149937,0.40801,2452.2,2452.0,0.40804]
[1728411149938,0.40803,2452.1,2452.0,0.40804]
[1728411150139,1.34793,2452.1,2452.0,0.40804]
[1728411150336,0.9399,2452.1,2452.0,0.40804]
[1728411151434,0.9228,2452.2,2452.1,0.40803]
[1728411151630,1.34788,2452.5,2452.1,0.40803]
[1728411151834,2.26308,2452.5,2452.4,0.40798]
[1728411152337,6.34068,2452.5,2452.4,0.40798]
[1728411152641,4.173,2452.7,2452.6,0.40794]
[1728411152830,0.4079,2452.9,2452.8,0.40789]
[1728411153438,1.8174,2453.0,2452.7,0.9298]
[1728411153740,2.22528,2453.0,2452.9,0.40789]
[1728411156936,2.22528,2453.0,2452.7,0.40791]
[1728411156937,0.40793,2452.8,2452.7,0.40791]
[1728411157639,1.01978,2452.9,2452.5,1.8491]
[1728411157833,0.40794,2452.7,2452.6,0.40793]
[1728411158835,0.40792,2452.8,2452.7,0.40791]
[1728411159032,3.2078,2453.1,2452.7,1.01983]
[1728411159236,3.61568,2453.1,2453.0,0.40788]
[1728411159440,3.61568,2453.1,2452.8,0.8809]
[1728411159441,2.32335,2453.2,2453.1,0.40786]
[1728411159639,0.4078,2453.6,2453.2,1.01962]
[1728411159943,0.4078,2453.6,2453.5,0.40778]
[1728411160142,2.93488,2453.8,2453.5,3.18]
[1728411160143,0.9641,2453.8,2453.5,3.18]
[1728411160332,4.173,2454.4,2453.7,3.18]
[1728411160333,1.9155,2454.3,2453.7,3.18]
[1728411160533,2.32317,2454.3,2454.2,0.40768]
[1728411160735,1.37177,2454.3,2454.2,0.40768]
[1728411160941,0.9641,2454.3,2454.0,3.18]
[1728411161141,1.37177,2454.3,2454.0,3.18]
[1728411161639,1.37177,2454.3,2454.2,0.40768]
[1728411161843,0.40768,2454.2,2454.0,3.18]
[1728411162043,0.4077,2454.1,2454.0,3.58771]
[1728411162338,0.40772,2454.0,2453.8,3.18]
[1728411162839,0.40772,2454.0,2453.8,3.58774]
[1728411163042,0.40773,2453.9,2453.8,3.18]
[1728411164450,1.01926,2454.1,2453.6,3.2078]
[1728411164451,0.40776,2453.7,2453.6,3.2078]
[1728411164635,1.01943,2453.7,2453.3,1.8113]
[1728411164840,0.4078,2453.5,2453.4,0.4078]
[1728411165636,0.40781,2453.4,2453.3,2.21912]
[1728411165947,0.40781,2453.4,2453.3,1.30312]
[1728411166844,1.7785,2453.6,2453.2,3.18]
[1728411167041,0.40784,2453.2,2453.1,0.40786]
[1728411169044,1.01955,2453.4,2453.0,3.18]
[1728411169247,0.9175,2453.5,2453.2,3.58784]
[1728411169248,0.40784,2453.3,2453.2,3.58784]
[1728411170437,4.9863,2453.6,2453.2,3.18]
[1728411170643,4.9863,2453.6,2453.4,3.5878]
[1728411170644,0.40781,2453.5,2453.4,3.5878]
[1728411171149,0.40781,2453.5,2453.4,3.18]
[1728411171339,0.40781,2453.4,2453.3,1.35962]
[1728411171946,0.40781,2453.5,2453.4,0.4078]
[1728411175146,6.00578,2453.6,2453.5,0.40779]
[1728411175147,2.18629,2453.6,2453.5,0.40779]
[1728411175352,1.0194,2453.8,2453.6,0.40776]
[1728411175353,0.40777,2453.7,2453.6,0.40776]
[1728411176053,0.40777,2453.7,2453.6,3.58776]
[1728411177853,0.40776,2453.8,2453.7,0.40775]
[1728411180052,0.40774,2453.9,2453.8,0.40773]
[1728411180248,0.9262,2454.2,2453.8,4.0922]
[1728411180457,0.40771,2454.1,2454.0,0.4077]
[1728411180758,0.40771,2454.1,2454.0,3.5877]
[1728411185256,0.40771,2454.1,2454.0,3.18]
[1728411185460,0.40771,2454.1,2454.0,3.58771]
[1728411187755,0.40771,2454.1,2453.6,3.2078]
[1728411188063,0.40779,2453.5,2453.4,0.4078]
[1728411190559,0.40781,2453.4,2453.3,3.58782]
[1728411193264,0.40781,2453.5,2453.4,0.40779]
[1728411193760,0.40778,2453.7,2453.6,0.40776]
[1728411195165,0.40778,2453.6,2453.5,0.40778]
[1728411195371,1.01945,2453.7,2453.3,3.2078]
[1728411195572,1.01945,2453.7,2453.2,4.48683]
[1728411195573,0.40783,2453.3,2453.2,4.48683]
[1728411196066,0.40783,2453.3,2453.2,8.56283]
[1728411196470,0.40783,2453.3,2453.2,4.48683]
[1728411196871,0.40783,2453.3,2453.2,8.56283]
[1728411197168,0.40783,2453.4,2453.3,0.40781]
[1728411197368,0.40783,2453.4,2453.3,3.58781]
[1728411197770,1.3017,2453.6,2453.5,0.40779]
[1728411198163,0.8939,2453.6,2453.3,3.18]
[1728411198370,0.40781,2453.5,2453.4,0.40779]
[1728411198965,0.40783,2453.4,2453.3,0.40781]
[1728411199166,1.32183,2453.4,2453.3,0.40781]
[1728411200068,1.91335,2453.6,2453.3,3.18]
[1728411200266,0.8939,2453.6,2453.5,3.58779]
[1728411200577,0.40778,2453.7,2453.6,0.40776]
[1728411203979,0.40778,2453.6,2453.5,0.40778]
[1728411208681,0.40778,2453.6,2453.3,3.18]
[1728411208682,0.40781,2453.4,2453.3,0.40782]
[1728411211680,1.01954,2453.4,2452.9,4.19971]
[1728411211885,0.40788,2453.1,2453.0,1.32615]
[1728411212686,0.40786,2453.2,2453.1,0.40784]
[1728411213480,0.40786,2453.2,2453.1,3.58784]
[1728411217281,0.40786,2453.2,2453.0,1.32616]
[1728411217483,1.36776,2453.1,2453.0,1.32616]
[1728411219981,0.40786,2453.2,2453.1,0.40786]
[1728411220176,0.40786,2453.2,2453.1,3.58786]
[1728411225379,0.9779,2453.3,2453.1,3.18]
[1728411225584,1.38574,2453.3,2453.2,0.40784]
[1728411229787,0.40784,2453.2,2453.1,3.58785]
[1728411230592,0.40784,2453.2,2453.1,0.40785]
[1728411233187,0.40789,2453.0,2452.9,0.40789]
[1728411233388,0.40789,2452.9,2452.8,3.6157]
[1728411233597,2.28849,2452.9,2452.8,3.6157]
[1728411234096,2.28849,2452.9,2452.8,3.2078]
[1728411234491,2.28849,2452.9,2452.8,3.61571]
[1728411235089,2.28849,2452.9,2452.8,3.2078]
[1728411235298,0.40793,2452.7,2452.6,2.19234]
[1728411236393,0.40793,2452.7,2452.6,1.29694]
[1728411236596,5.09747,2452.7,2452.3,0.40798]
[1728411236894,0.40801,2452.2,2452.1,3.11381]
[1728411237488,0.40804,2452.0,2451.7,3.18]
[1728411237694,0.40807,2451.9,2451.8,0.9684]
[1728411238487,1.02008,2452.1,2451.8,1.37648]
[1728411238699,0.40805,2452.0,2451.9,0.40804]
[1728411242702,0.40806,2451.9,2451.8,1.37647]
[1728411242891,0.40806,2451.9,2451.8,0.9684]
[1728411243092,0.40807,2451.8,2451.2,0.095]
[1728411243293,0.40807,2451.8,2451.3,0.9437]
[1728411243294,0.40814,2451.4,2451.3,0.9437]
[1728411244304,0.40814,2451.4,2451.3,1.35186]
[1728411244703,0.40814,2451.4,2451.3,0.9437]
[1728411245701,0.40814,2451.4,2451.3,1.35186]
[1728411245901,0.40814,2451.4,2451.3,0.9437]
[1728411246403,0.40814,2451.4,2451.3,1.35186]
[1728411251907,0.40813,2451.6,2451.5,0.40811]
[1728411252111,0.4081,2451.7,2451.6,0.40809]
[1728411252408,0.40807,2451.9,2451.8,0.40806]
[1728411253108,1.02008,2452.1,2451.7,5.1229]
[1728411253313,0.40807,2451.9,2451.8,0.40806]
[1728411255103,21.8188,2452.8,2451.8,16.4662]
[1728411255307,21.8188,2452.8,2452.3,0.40798]
[1728411255308,0.40799,2452.4,2452.3,0.40798]
[1728411257513,0.40799,2452.3,2452.2,1.35659]
[1728411257714,0.40799,2452.3,2452.2,1.35661]
[1728411268624,0.40801,2452.2,2452.1,2.28772]
[1728411269322,0.40801,2452.2,2452.1,0.9571]
[1728411269518,0.40802,2452.1,2452.0,1.35683]
[1728411272118,0.9262,2452.1,2451.9,0.8922]
[1728411272325,0.40804,2452.0,2451.9,1.30025]
[1728411275225,0.40801,2452.3,2452.2,0.40799]
[1728411276731,1.01996,2452.4,2452.3,0.40797]
[1728411276732,0.40799,2452.4,2452.3,0.40797]
[1728411277627,0.40799,2452.4,2452.3,1.30727]
[1728411280129,0.40799,2452.4,2452.3,0.8993]
[1728411280333,0.40799,2452.4,2452.2,0.9776]
[1728411280527,0.40799,2452.3,2452.2,1.38559]
[1728411281032,0.40799,2452.3,2452.2,0.40799]
[1728411281235,0.40799,2452.4,2452.1,0.9823]
[1728411281538,0.40804,2452.0,2451.9,1.34524]
[1728411285424,1.02002,2452.3,2451.9,0.9372]
[1728411285627,1.8029,2452.5,2451.9,4.145]
[1728411285829,0.40801,2452.3,2452.2,0.40799]
[1728411287246,0.40801,2452.2,2452.1,1.29651]
[1728411297941,0.40804,2452.1,2452.0,0.40802]
[1728411298147,0.40804,2452.1,2452.0,1.33282]
[1728411298342,0.40804,2452.1,2452.0,0.40802]
[1728411301646,1.34544,2452.1,2452.0,0.40802]
[1728411303749,2.31484,2452.1,2452.0,0.40802]
[1728411304549,1.9068,2452.1,2452.0,0.40802]
[1728411304757,3.2078,2452.8,2452.0,14.7562]
[1728411305048,1.9085,2452.9,2452.6,1.47]
[1728411305246,0.40792,2452.8,2452.7,3.20691]
[1728411306351,0.40792,2452.8,2452.5,3.2078]
[1728411306352,0.40794,2452.6,2452.5,3.2078]
[1728411306646,0.40796,2452.5,2452.4,0.40796]
[1728411307348,0.40795,2452.6,2452.5,0.40794]
[1728411308048,7.60606,2452.9,2452.4,1.47]
[1728411308248,1.9085,2452.9,2452.4,1.47]
[1728411308453,0.40795,2452.6,2452.5,0.40794]
[1728411308645,1.0198,2452.8,2452.4,1.47]
[1728411308850,0.40794,2452.7,2452.6,0.40793]
[1728411309054,1.01972,2453.0,2452.6,1.47]
[1728411309263,0.40788,2453.0,2452.9,0.40788]
[1728411310453,1.8325,2453.1,2452.8,0.9586]
[1728411310655,3.2078,2453.2,2452.9,1.47]
[1728411310963,3.2078,2453.2,2453.1,1.87786]
[1728411312458,3.61564,2453.2,2453.1,1.87786]
[1728411312654,0.40784,2453.2,2453.1,1.87786]
[1728411312962,2.87745,2453.4,2453.2,0.40783]
[1728411312963,0.40784,2453.3,2453.2,0.40783]
[1728411313166,0.40786,2453.2,2453.1,0.40786]
[1728411314351,0.40786,2453.2,2452.9,1.47]
[1728411314352,0.40784,2453.3,2453.2,0.40783]
[1728411315661,1.8579,2453.4,2453.2,0.8959]
[1728411315856,0.40783,2453.4,2453.3,0.40783]
[1728411316053,0.9535,2453.6,2453.2,0.8959]
[1728411316259,0.40781,2453.5,2453.4,0.4078]
[1728411316965,0.40774,2453.9,2453.8,0.40773]
[1728411317157,10.3997004,2454.3,2453.9,0.40772]
[1728411317158,0.40773,2454.0,2453.9,0.40772]
[1728411317359,0.40773,2454.0,2453.9,3.58772]
[1728411317669,0.40773,2454.0,2453.9,0.40772]
[1728411317865,0.40771,2454.1,2454.0,0.4077]
[1728411319056,0.40769,2454.2,2454.1,0.40768]
[1728411319255,0.40769,2454.2,2454.1,1.35138]
[1728411319667,0.40769,2454.2,2454.1,0.9437]
[1728411320567,0.40769,2454.1,2454.0,0.4077]
[1728411322473,0.40773,2453.9,2453.8,4.53143]
[1728411322673,3.18,2454.1,2453.4,6.4828]
[1728411322978,0.40779,2453.5,2453.4,3.6156]
[1728411323473,1.01942,2453.7,2453.3,1.858]
[1728411323666,0.40781,2453.4,2453.3,1.858]
[1728411323867,1.01958,2453.3,2453.0,3.2078]
[1728411324167,1.01958,2453.3,2453.0,4.1281]
[1728411324372,0.40786,2453.1,2453.0,4.53597]
[1728411325174,0.40781,2453.4,2453.3,0.40783]
[1728411325471,0.9469,2453.5,2453.4,0.4078]
[1728411325472,0.4078,2453.5,2453.4,0.4078]
[1728411326166,0.40782,2453.4,2453.3,0.40782]
[1728411326765,0.40786,2453.2,2453.1,0.40785]
[1728411326961,4.19955,2453.4,2453.0,3.2078]
[1728411327171,4.19955,2453.4,2452.7,0.095]
[1728411327172,0.40789,2453.0,2452.9,0.40789]
[1728411328266,0.40791,2452.9,2452.8,0.4079]
[1728411330075,4.22752,2453.0,2452.5,1.8806]
[1728411330263,4.22752,2453.0,2452.4,0.40796]
[1728411330264,0.40797,2452.5,2452.4,0.40796]
[1728411331263,0.9562,2452.6,2452.2,3.18]
[1728411331467,0.40801,2452.2,2452.1,0.9106]
[1728411331665,7.40776,2452.4,2451.9,0.40805]
[1728411331872,0.40804,2452.0,2451.9,0.40805]
[1728411332273,1.37023,2452.1,2452.0,0.40804]
[1728411332672,1.37024,2452.1,2451.8,5.9613]
[1728411332877,1.37024,2452.1,2452.0,0.40804]
[1728411333468,0.9622,2452.1,2452.0,0.40804]
[1728411333770,0.40801,2452.2,2452.1,0.40801]
[1728411333970,1.02003,2452.2,2451.8,3.18936]
[1728411334171,1.02003,2452.2,2451.7,0.095]
[1728411334172,0.40808,2451.8,2451.7,0.095]
[1728411334483,0.40813,2451.5,2451.4,0.50314]
[1728411334673,3.18,2451.8,2451.1,1.8785]
[1728411334674,1.9359,2451.7,2451.3,0.40815]
[1728411334873,2.95616,2451.7,2451.1,1.8785]
[1728411335179,1.9359,2451.7,2451.2,3.18]
[1728411335475,1.9359,2451.7,2451.6,0.40811]
[1728411337572,2.34399,2451.7,2451.6,0.40811]
[1728411337771,2.34399,2451.7,2451.5,0.40811]
[1728411337772,0.40811,2451.6,2451.5,0.40811]
[1728411337972,1.9359,2451.7,2451.4,3.18]
[1728411338174,0.40811,2451.6,2451.5,0.40812]
[1728411338675,2.344,2451.7,2451.5,0.40812]
[1728411339181,0.40814,2451.4,2451.3,3.2078]
[1728411339373,3.18,2451.6,2450.9,3.3028]
[1728411339574,1.02053,2451.0,2450.6,0.50327]
[1728411339775,2.93849,2450.9,2450.3,3.18]
[1728411339976,0.40824,2450.8,2450.7,0.40825]
[1728411340876,1.9179,2450.9,2450.8,0.40824]
[1728411341077,1.94194,2451.3,2450.7,3.18]
[1728411341278,0.4082,2451.1,2451.0,0.40821]
[1728411341878,2.85194,2451.3,2450.7,3.18]
[1728411341879,0.40822,2451.0,2450.9,0.40822]
[1728411342079,0.40819,2451.1,2450.9,0.40822]
[1728411342280,1.02045,2451.2,2450.6,0.945]
[1728411342483,0.40823,2450.9,2450.8,0.40823]
[1728411342684,0.40822,2451.0,2450.9,0.40822]
[1728411342877,0.40823,2450.9,2450.8,0.40823]
[1728411343077,0.40822,2451.0,2450.9,0.40822]
[1728411343278,1.8315,2451.3,2450.6,0.945]
[1728411343476,0.40817,2451.3,2451.2,0.40816]
[1728411344380,0.40815,2451.4,2451.3,0.40815]
[1728411344578,1.02034,2451.5,2451.2,0.40817]
[1728411344579,0.40818,2451.3,2451.2,0.40817]
[1728411345884,0.40815,2451.4,2451.3,0.40814]
[1728411347181,1.8745,2451.6,2451.1,0.9031]
[1728411347386,0.40817,2451.3,2451.2,0.40816]
[1728411347781,0.40813,2451.5,2451.4,0.40814]
[1728411348281,0.40808,2451.8,2451.7,0.40807]
[1728411348686,1.02011,2452.0,2451.8,0.40806]
[1728411348687,0.40807,2451.9,2451.8,0.40806]
[1728411349085,4.22788,2452.1,2451.6,0.8854]
[1728411349284,0.40806,2452.0,2451.9,0.40805]
[1728411350090,0.40808,2451.9,2451.8,0.40807]
[1728411350287,3.2078,2452.1,2451.6,0.8854]
[1728411350588,3.2078,2452.1,2451.8,0.40806]
[1728411350589,0.40807,2451.9,2451.8,0.40806]
[1728411351188,3.2078,2452.1,2452.0,0.40804]
[1728411351385,0.40798,2452.4,2452.3,0.40798]
[1728411351787,1.8634,2452.5,2452.1,2.88206]
[1728411351987,0.9774,2452.5,2452.4,0.40798]
[1728411352195,0.40795,2452.6,2452.5,0.40796]
[1728411352390,0.40795,2452.6,2452.5,0.40794]
[1728411352591,0.40794,2452.7,2452.6,0.40793]
[1728411352992,0.40794,2452.7,2452.3,1.01997]
[1728411352993,1.38532,2452.8,2452.7,0.40793]
[1728411353194,0.40792,2452.8,2452.7,0.40793]
[1728411353892,0.40793,2452.7,2452.6,0.40793]
[1728411357695,0.40792,2452.8,2452.7,0.40792]